bitfinex/quotes_BTCUSD_20240905
["timestamp","ask_amount","ask_price","bid_price","bid_amount"]
[1725551006569,0.180107,56146.0,56145.0,0.17815096]
[1725551006792,0.002,56146.0,56145.0,0.17815096]
[1725551007011,0.002,56146.0,56145.0,0.47715096]
[1725551007229,0.45032128,56146.0,56145.0,0.17815096]
[1725551007451,0.002,56146.0,56145.0,0.35626096]
[1725551007677,0.80653528,56146.0,56145.0,0.17815096]
[1725551007912,1.16274928,56146.0,56145.0,0.17815096]
[1725551008136,1.16274928,56146.0,56145.0,0.00264]
[1725551008137,1.83026328,56146.0,56145.0,0.00264]
[1725551008254,2.37967728,56146.0,56145.0,0.00264]
[1725551008683,2.02346328,56146.0,56145.0,0.00264]
[1725551008909,2.02146328,56146.0,56145.0,0.00164]
[1725551009196,2.37767728,56146.0,56145.0,0.00164]
[1725551009409,2.37767728,56146.0,56145.0,0.00564]
[1725551009410,2.40167728,56146.0,56145.0,0.00564]
[1725551009649,2.40267728,56146.0,56145.0,0.01664]
[1725551009873,2.40167728,56146.0,56145.0,0.01264]
[1725551010102,2.40067728,56146.0,56145.0,0.00264]
[1725551010589,2.40167728,56146.0,56145.0,0.00864]
[1725551010811,2.37767728,56146.0,56145.0,0.00164]
[1725551011037,2.38767728,56146.0,56145.0,0.00164]
[1725551011273,2.49400216,56146.0,56145.0,0.00164]
[1725551011925,2.51700216,56146.0,56145.0,0.00164]
[1725551012166,2.51900216,56146.0,56145.0,0.00164]
[1725551012617,2.52100216,56146.0,56145.0,0.00164]
[1725551012842,2.52100216,56146.0,56145.0,0.00664]
[1725551013314,2.51900216,56146.0,56145.0,0.00664]
[1725551015353,2.51900057,56146.0,56145.0,0.00664]
[1725551015830,2.85889128,56146.0,56145.0,0.00664]
[1725551016038,2.87521358,56146.0,56145.0,0.00664]
[1725551016245,2.52099958,56146.0,56145.0,0.00664]
[1725551016450,2.87721358,56146.0,56145.0,0.00664]
[1725551016698,3.14742786,56146.0,56145.0,0.00664]
[1725551016963,1.603048,56143.0,56142.0,0.00162]
[1725551017206,0.890757,56132.0,56131.0,0.00162]
[1725551017448,2.73928028,56132.0,56131.0,0.00162]
[1725551017662,2.38297728,56132.0,56131.0,0.00162]
[1725551019422,2.38997728,56132.0,56131.0,0.00162]
[1725551019859,2.39097728,56132.0,56131.0,0.00662]
[1725551020102,2.38397728,56132.0,56131.0,0.00662]
[1725551020325,2.38297728,56132.0,56131.0,0.00162]
[1725551020544,2.76098796,56132.0,56131.0,0.00162]
[1725551021045,3.21929096,56132.0,56131.0,0.00162]
[1725551021506,3.23729096,56132.0,56131.0,0.00162]
[1725551021731,3.23729096,56132.0,56127.0,0.00162]
[1725551021732,0.480264,56128.0,56127.0,0.00162]
[1725551021958,1.94046228,56128.0,56127.0,0.00162]
[1725551022197,2.65311828,56128.0,56127.0,0.00162]
[1725551022411,2.65311828,56128.0,56115.0,0.00162]
[1725551022412,1.247347,56119.0,56115.0,0.00162]
[1725551022642,1.87394628,56119.0,56115.0,0.00162]
[1725551023415,0.27021428,56119.0,56118.0,0.67233096]
[1725551023638,1.16117628,56119.0,56118.0,0.19442]
[1725551023858,1.51856128,56119.0,56118.0,0.00662]
[1725551024358,1.16217628,56119.0,56118.0,0.00662]
[1725551024802,1.16117628,56119.0,56118.0,0.00162]
[1725551025260,0.80479128,56119.0,56118.0,0.17713096]
[1725551025482,0.80579128,56119.0,56118.0,0.17713096]
[1725551025712,1.16217628,56119.0,56118.0,0.17713096]
[1725551025943,0.80579128,56119.0,56118.0,0.17713096]
[1725551026187,0.27121428,56119.0,56118.0,0.48173096]
[1725551026409,0.27221428,56119.0,56118.0,0.48673096]
[1725551026865,0.27121428,56119.0,56118.0,0.65992596]
[1725551027088,0.27221428,56119.0,56118.0,0.66492596]
[1725551027312,0.002,56119.0,56118.0,1.57400796]
[1725551027967,0.002,56119.0,56118.0,0.86122596]
[1725551028197,0.002,56119.0,56118.0,0.68303096]
[1725551028198,0.45040628,56119.0,56118.0,0.68303096]
[1725551028440,0.27121428,56119.0,56118.0,0.68303096]
[1725551028880,0.44940628,56119.0,56118.0,0.68303096]
[1725551029102,0.27121428,56119.0,56118.0,0.86122596]
[1725551029356,0.27221428,56119.0,56118.0,0.68903096]
[1725551029577,1.16217628,56119.0,56118.0,0.37943096]
[1725551029799,1.16217628,56119.0,56118.0,0.39343096]
[1725551030044,1.16317628,56119.0,56118.0,0.39343096]
[1725551030473,0.80679128,56119.0,56118.0,0.39343096]
[1725551030922,0.80679128,56119.0,56118.0,0.21792]
[1725551031192,1.16317628,56119.0,56118.0,0.21792]
[1725551031889,0.80679128,56119.0,56118.0,0.21792]
[1725551032103,0.002,56119.0,56118.0,0.39343096]
[1725551032316,0.536577,56119.0,56118.0,0.39343096]
[1725551032546,0.892962,56119.0,56118.0,0.39343096]
[1725551032760,0.180192,56119.0,56118.0,0.39343096]
[1725551032980,0.536577,56119.0,56118.0,0.39343096]
[1725551033196,0.180192,56119.0,56118.0,0.39343096]
[1725551033676,0.002,56119.0,56118.0,0.39343096]
[1725551034992,0.002,56119.0,56118.0,0.57162596]
[1725551035239,0.002,56119.0,56118.0,0.92801696]
[1725551036157,0.002,56119.0,56118.0,1.28440796]
[1725551036619,0.002,56119.0,56118.0,0.92801696]
[1725551037979,0.002,56119.0,56118.0,1.28440796]
[1725551038196,0.002,56119.0,56118.0,0.92801696]
[1725551038432,0.002,56119.0,56118.0,0.57162596]
[1725551038674,0.002,56119.0,56118.0,0.02162]
[1725551038675,0.892962,56119.0,56118.0,0.02162]
[1725551039115,1.249347,56119.0,56118.0,0.02162]
[1725551041029,1.249347,56119.0,56092.0,0.3152]
[1725551041030,1.247547,56110.0,56092.0,0.3152]
[1725551041308,1.247547,56110.0,56087.0,0.55551166]
[1725551041309,0.534759,56100.0,56087.0,0.476]
[1725551041556,0.534759,56100.0,56089.0,0.03836787]
[1725551041557,1.87449128,56100.0,56089.0,0.03836787]
[1725551041775,1.87449128,56100.0,56088.0,0.18532]
[1725551041776,1.87449128,56100.0,56088.0,0.00162]
[1725551042732,0.27021428,56104.0,56099.0,0.18663116]
[1725551042975,0.6275,56118.0,56107.0,0.17823]
[1725551042976,0.27021428,56108.0,56107.0,0.17823]
[1725551043212,0.3117,56118.0,56107.0,0.17823]
[1725551043213,0.27021428,56109.0,56107.0,0.17551096]
[1725551043451,0.27021428,56109.0,56102.0,0.35649]
[1725551043452,0.27021428,56109.0,56108.0,0.17251096]
[1725551043676,0.27021428,56109.0,56101.0,0.3038]
[1725551043677,0.356461,56107.0,56098.0,0.1998]
[1725551043892,0.534748,56101.0,56100.0,0.17551096]
[1725551044537,0.44846328,56101.0,56100.0,0.17551096]
[1725551045009,0.27021428,56101.0,56100.0,0.17551096]
[1725551045231,0.27021428,56101.0,56100.0,0.35376396]
[1725551045459,0.15462853,56106.0,56102.0,0.178245]
[1725551045699,0.001,56108.0,56103.0,0.17907557]
[1725551045931,0.27021428,56110.0,56105.0,0.356473]
[1725551046163,0.27021428,56110.0,56106.0,0.17551096]
[1725551046408,0.27021428,56110.0,56107.0,0.178229]
[1725551046628,0.27021428,56110.0,56108.0,0.17551096]
[1725551046873,0.27021428,56110.0,56109.0,0.178224]
[1725551047106,0.001,56110.0,56109.0,0.89558396]
[1725551047351,0.001,56110.0,56109.0,1.60848196]
[1725551048078,0.002,56110.0,56109.0,1.25203296]
[1725551048314,0.000815,56127.0,56109.0,0.68181096]
[1725551048558,0.000815,56127.0,56120.0,0.4963]
[1725551048775,0.27102928,56127.0,56123.0,0.178177]
[1725551049021,0.178173,56125.0,56124.0,0.17551096]
[1725551049263,0.80473428,56125.0,56124.0,0.17551096]
[1725551049499,0.27021428,56125.0,56124.0,0.17551096]
[1725551051123,0.27021428,56125.0,56124.0,0.18751096]
[1725551051365,0.44838728,56125.0,56124.0,0.18751096]
[1725551051610,0.44938728,56125.0,56124.0,0.19551096]
[1725551052040,0.44938728,56125.0,56124.0,0.18351096]
[1725551052290,0.27021428,56130.0,56124.0,0.17551096]
[1725551052521,0.35629,56134.0,56127.0,0.534497]
[1725551052779,0.356288,56135.0,56128.0,0.17551096]
[1725551053014,0.356288,56135.0,56120.0,0.541778]
[1725551053015,0.178173,56125.0,56120.0,0.541778]
[1725551053276,0.178174,56125.0,56121.0,0.35369596]
[1725551053525,0.178174,56125.0,56124.0,0.002]
[1725551053742,0.178173,56125.0,56124.0,0.17751096]
[1725551053981,0.179173,56125.0,56124.0,0.19051096]
[1725551054209,0.001,56125.0,56124.0,0.54686396]
[1725551054436,0.3103,56137.0,56124.0,0.17751096]
[1725551054652,0.178159,56130.0,56126.0,0.178169]
[1725551054904,0.178161,56129.0,56127.0,0.17551096]
[1725551055329,0.178158,56130.0,56127.0,0.17551096]
[1725551055549,0.178156,56131.0,56127.0,0.35367696]
[1725551055763,0.178158,56130.0,56127.0,0.35367696]
[1725551055985,0.002,56130.0,56127.0,0.35367696]
[1725551056252,0.002,56130.0,56129.0,1.545827]
[1725551056464,0.001,56130.0,56129.0,1.91823796]
[1725551056730,0.001,56130.0,56129.0,1.92823796]
[1725551057402,0.001,56131.0,56130.0,0.534472]
[1725551057644,0.001,56131.0,56130.0,0.70998296]
[1725551058103,0.178121,56142.0,56130.0,0.17551096]
[1725551058336,0.178143,56135.0,56131.0,0.35366396]
[1725551058745,0.178143,56135.0,56129.0,0.2109]
[1725551058746,0.27021428,56143.0,56129.0,0.024]
[1725551058747,0.178157,56130.0,56129.0,0.024]
[1725551058965,0.178157,56130.0,56099.0,0.1967502]
[1725551058966,0.1885,56109.0,56099.0,0.1967502]
[1725551059093,0.534759,56100.0,56099.0,0.0127502]
[1725551059515,0.534759,56100.0,56099.0,0.18826116]
[1725551059727,0.178253,56100.0,56099.0,0.18826116]
[1725551060179,0.534759,56100.0,56099.0,0.18826116]
[1725551060395,0.178253,56100.0,56099.0,0.18826116]
[1725551060626,0.35647,56106.0,56099.0,0.18826116]
[1725551060828,0.356483,56104.0,56100.0,0.17551096]
[1725551061052,0.178249,56101.0,56100.0,0.17551096]
[1725551061256,0.356483,56104.0,56100.0,0.17551096]
[1725551061474,0.534748,56101.0,56100.0,0.17551096]
[1725551061685,0.891265,56100.0,56099.0,0.0297502]
[1725551061960,1.247771,56100.0,56099.0,0.0127502]
[1725551062415,1.431971,56100.0,56099.0,0.0127502]
[1725551062659,2.094477,56100.0,56099.0,0.0127502]
[1725551062881,2.117477,56100.0,56099.0,0.0127502]
[1725551063095,2.118477,56100.0,56099.0,0.0187502]
[1725551063758,1.738971,56100.0,56099.0,0.0187502]
[1725551063991,1.198265,56100.0,56099.0,0.19426116]
[1725551066640,1.554771,56100.0,56099.0,0.0237502]
[1725551067497,1.198265,56100.0,56099.0,0.0237502]
[1725551068212,0.001,56100.0,56099.0,0.19926116]
[1725551068452,0.001,56100.0,56099.0,0.19626116]
[1725551068899,0.27021428,56106.0,56099.0,0.19126116]
[1725551069134,0.356474,56105.0,56100.0,0.17551096]
[1725551069368,0.356506,56100.0,56099.0,0.0217502]
[1725551069600,0.891265,56100.0,56099.0,0.0217502]
[1725551069812,1.247771,56100.0,56099.0,0.0217502]
[1725551070022,1.247771,56100.0,56099.0,0.0187502]
[1725551070733,1.429271,56100.0,56099.0,0.0127502]
[1725551071149,1.430271,56100.0,56099.0,0.0267502]
[1725551071374,1.430271,56100.0,56099.0,0.0227502]
[1725551071627,0.001,56100.0,56099.0,1.22862916]
[1725551071839,0.001,56100.0,56099.0,1.57514116]
[1725551072163,0.178222,56110.0,56106.0,0.178232]
[1725551072370,0.178224,56110.0,56107.0,0.17551096]
[1725551072582,0.178224,56109.0,56107.0,0.17551096]
[1725551072796,0.178219,56111.0,56107.0,0.35373996]
[1725551073009,0.356423,56113.0,56107.0,0.17551096]
[1725551073010,0.178225,56109.0,56107.0,0.17551096]
[1725551073240,0.178222,56110.0,56107.0,0.17551096]
[1725551073477,0.356455,56108.0,56107.0,0.17551096]
[1725551073687,0.891137,56108.0,56107.0,0.17551096]
[1725551073899,0.178227,56108.0,56107.0,0.17551096]
[1725551074542,0.534682,56108.0,56107.0,0.17551096]
[1725551074754,0.356434,56112.0,56107.0,0.36573996]
[1725551074986,0.178227,56108.0,56107.0,0.20151096]
[1725551075183,0.178227,56108.0,56107.0,0.18951096]
[1725551075395,0.534682,56108.0,56107.0,0.18951096]
[1725551075602,0.178227,56108.0,56107.0,0.014]
[1725551075810,0.891137,56108.0,56107.0,0.014]
[1725551076228,0.891137,56108.0,56107.0,0.028]
[1725551076229,0.534682,56108.0,56107.0,0.028]
[1725551076458,0.27021428,56109.0,56107.0,0.20351096]
[1725551076666,0.534682,56108.0,56107.0,0.20351096]
[1725551076871,0.178227,56108.0,56107.0,0.20351096]
[1725551077223,0.534682,56108.0,56107.0,0.20351096]
[1725551077439,0.534682,56108.0,56107.0,0.17551096]
[1725551077641,0.534682,56108.0,56107.0,0.18951096]
[1725551077846,0.27021428,56109.0,56107.0,0.38173996]
[1725551078061,0.356395,56118.0,56107.0,0.38173996]
[1725551078062,0.2869,56119.0,56108.0,0.17551096]
[1725551078300,0.2869,56119.0,56108.0,0.17907527]
[1725551078508,0.27021428,56121.0,56109.0,0.187]
[1725551078701,0.356398,56117.0,56110.0,0.17551096]
[1725551078906,0.356398,56117.0,56111.0,0.178216]
[1725551078907,0.178209,56114.0,56111.0,0.178216]
[1725551079106,0.27021428,56121.0,56112.0,0.17551096]
[1725551079329,0.4761,56135.0,56112.0,0.17551096]
[1725551079330,0.27021428,56125.0,56114.0,0.356412]
[1725551079598,0.27021428,56125.0,56119.0,0.178192]
[1725551079826,0.27021428,56125.0,56120.0,0.17551096]
[1725551080031,0.356372,56121.0,56120.0,0.17551096]
[1725551080251,0.356372,56121.0,56109.0,0.187]
[1725551080252,0.27021428,56121.0,56109.0,0.187]
[1725551080407,0.27021428,56117.0,56110.0,0.17551096]
[1725551080628,0.534673,56109.0,56108.0,0.004]
[1725551080847,1.16133628,56109.0,56108.0,0.004]
[1725551081307,0.178244,56103.0,56099.0,0.2034502]
[1725551081521,0.1917,56114.0,56100.0,0.17551096]
[1725551081522,0.27021428,56105.0,56100.0,0.17551096]
[1725551081740,0.178244,56103.0,56100.0,0.17551096]
[1725551081962,0.356483,56104.0,56100.0,0.17551096]
[1725551082187,0.178247,56102.0,56100.0,0.17551096]
[1725551082384,0.178249,56101.0,56100.0,0.17551096]
[1725551082812,0.178247,56102.0,56100.0,0.17551096]
[1725551083272,0.178243,56103.0,56100.0,0.18951096]
[1725551083507,0.178232,56107.0,56104.0,0.178239]
[1725551083737,0.27021428,56114.0,56105.0,0.17551096]
[1725551083953,0.27021428,56114.0,56111.0,0.178215]
[1725551084174,0.27021428,56114.0,56112.0,0.178214]
[1725551084594,0.356396,56118.0,56114.0,0.178208]
[1725551084595,0.62661028,56118.0,56114.0,0.178208]
[1725551084833,0.62661028,56118.0,56109.0,0.4879]
[1725551084834,0.27021428,56118.0,56115.0,0.17551096]
[1725551085070,0.356367,56122.0,56115.0,0.53191896]
[1725551085071,0.62658428,56122.0,56115.0,0.53191896]
[1725551085294,0.178188,56121.0,56117.0,0.178197]
[1725551085511,0.356373,56121.0,56118.0,0.17551096]
[1725551085754,0.27021428,56122.0,56118.0,0.17551096]
[1725551085976,0.27021428,56122.0,56121.0,0.178186]
[1725551086193,0.27021428,56122.0,56121.0,0.17551096]
[1725551086415,0.44839728,56122.0,56121.0,0.17551096]
[1725551086629,0.27021428,56122.0,56121.0,0.17551096]
[1725551087058,0.44839728,56122.0,56121.0,0.17551096]
[1725551087281,0.44839728,56122.0,56117.0,0.003]
[1725551087282,0.534586,56118.0,56117.0,0.003]
[1725551087573,1.51758228,56118.0,56117.0,0.003]
[1725551087801,0.891265,56100.0,56099.0,0.0127502]
[1725551088012,0.891265,56100.0,56088.0,0.00162]
[1725551088013,0.534864,56089.0,56088.0,0.00162]
[1725551088226,1.81153028,56089.0,56088.0,0.00162]
[1725551088444,1.45495428,56089.0,56088.0,0.00162]
[1725551088903,1.99743028,56089.0,56088.0,0.00162]
[1725551089123,2.35400628,56089.0,56088.0,0.00162]
[1725551089548,2.35400628,56089.0,56088.0,0.01562]
[1725551090015,2.35400628,56089.0,56069.0,0.36145]
[1725551090016,1.24846,56069.0,56052.0,0.0268024]
[1725551090271,1.20588451,56065.0,56052.0,0.52650515]
[1725551090500,1.56261251,56065.0,56052.0,0.52650515]
[1725551090714,0.84915651,56065.0,56052.0,0.35681]
[1725551090929,0.84915651,56065.0,56055.0,0.35679]
[1725551091140,0.84915651,56065.0,56051.0,0.00162]
[1725551091141,0.84915651,56065.0,56052.0,0.356807]
[1725551091352,0.31406451,56065.0,56057.0,0.1895]
[1725551091574,0.84915651,56065.0,56057.0,0.1895]
[1725551091795,0.84915651,56065.0,56051.0,0.01362]
[1725551091796,1.38738451,56065.0,56051.0,0.00162]
[1725551092015,1.74411251,56065.0,56051.0,0.00162]
[1725551092451,1.74511251,56065.0,56051.0,0.00162]
[1725551092697,1.38838451,56065.0,56051.0,0.00162]
[1725551092933,1.74511251,56065.0,56064.0,0.00414]
[1725551093162,1.76811251,56065.0,56064.0,0.00414]
[1725551093813,2.12484051,56065.0,56064.0,0.00414]
[1725551094525,2.42004051,56065.0,56064.0,0.00414]
[1725551094959,2.42004051,56065.0,56064.0,0.00577]
[1725551095172,1.20688451,56065.0,56064.0,0.00577]
[1725551096027,0.85015651,56065.0,56064.0,0.00577]
[1725551096679,1.20688451,56065.0,56064.0,0.00577]
[1725551096888,0.85015651,56065.0,56064.0,0.00577]
[1725551097538,0.49342851,56065.0,56064.0,0.00577]
[1725551097777,0.31506451,56065.0,56064.0,0.00577]
[1725551098009,0.31506451,56065.0,56064.0,0.55024796]
[1725551098010,0.001,56065.0,56064.0,0.55024796]
[1725551098233,0.001,56065.0,56064.0,0.90698296]
[1725551098653,0.49241351,56070.0,56065.0,0.178361]
[1725551098863,0.49241351,56070.0,56066.0,0.35387096]
[1725551099077,0.49241351,56070.0,56066.0,0.17551096]
[1725551099774,0.31406451,56070.0,56066.0,0.17551096]
[1725551100004,0.31406451,56070.0,56067.0,0.356714]
[1725551100229,0.31406451,56070.0,56069.0,0.178351]
[1725551100495,0.67070251,56080.0,56074.0,0.178335]
[1725551100725,0.31406451,56080.0,56074.0,0.17551096]
[1725551100934,0.31406451,56080.0,56074.0,0.17751096]
[1725551101243,0.31406451,56080.0,56064.0,0.19237]
[1725551101244,0.31406451,56090.0,56080.0,0.002]
[1725551101446,0.31406451,56090.0,56089.0,0.534864]
[1725551101679,0.31406451,56090.0,56089.0,1.06695096]
[1725551102112,0.1876,56103.0,56089.0,1.06695096]
[1725551102113,0.31406451,56096.0,56095.0,0.178269]
[1725551102321,0.31406451,56096.0,56095.0,0.71031796]
[1725551102564,0.31406451,56096.0,56095.0,0.35377996]
[1725551103053,0.31406451,56096.0,56095.0,0.71031796]
[1725551104167,0.31406451,56096.0,56095.0,1.08085596]
[1725551104635,0.31406451,56096.0,56095.0,0.71031796]
[1725551104900,0.31406451,56101.0,56100.0,0.534759]
[1725551105130,0.01,56120.0,56107.0,0.356456]
[1725551105131,0.31406451,56111.0,56107.0,0.356456]
[1725551105341,0.31406451,56111.0,56106.0,0.1883]
[1725551105581,0.31406451,56111.0,56106.0,0.17551096]
[1725551105807,0.31406451,56111.0,56110.0,0.178221]
[1725551106023,0.31406451,56111.0,56110.0,0.534663]
[1725551106247,0.2997,56120.0,56115.0,0.178205]
[1725551106248,0.31406451,56116.0,56115.0,0.178205]
[1725551106502,0.356363,56123.0,56115.0,0.178205]
[1725551106503,0.31406451,56121.0,56116.0,0.356399]
[1725551106737,0.31406451,56121.0,56110.0,0.17751096]
[1725551106738,0.178193,56119.0,56110.0,0.17551096]
[1725551107014,0.31406451,56116.0,56115.0,0.178205]
[1725551107497,0.31406451,56116.0,56115.0,0.014]
[1725551107721,0.31406451,56116.0,56115.0,0.192205]
[1725551107950,0.31406451,56116.0,56115.0,0.534615]
[1725551108221,0.31406451,56116.0,56115.0,0.548615]
[1725551108447,0.31406451,56116.0,56115.0,0.192205]
[1725551108667,0.31406451,56116.0,56115.0,0.014]
[1725551108913,1.56147851,56116.0,56115.0,0.026]
[1725551109146,2.05087851,56116.0,56115.0,0.026]
[1725551109358,2.43028251,56116.0,56115.0,0.014]
[1725551109583,2.07387851,56116.0,56115.0,0.028]
[1725551109799,1.69447451,56116.0,56115.0,0.014]
[1725551110023,1.6517454,56116.0,56115.0,0.028]
[1725551110240,2.0081494,56116.0,56115.0,0.028]
[1725551110462,1.6517454,56116.0,56115.0,0.014]
[1725551110719,2.0081494,56116.0,56115.0,0.014]
[1725551110925,2.0081494,56116.0,56115.0,0.028]
[1725551111126,0.891327,56096.0,56092.0,0.52650515]
[1725551111581,1.247858,56096.0,56081.0,0.356621]
[1725551111791,1.247858,56096.0,56079.0,0.185]
[1725551112021,1.247858,56096.0,56081.0,0.356624]
[1725551112239,1.247858,56096.0,56083.0,0.178304]
[1725551112452,1.247858,56096.0,56085.0,0.178299]
[1725551112920,1.247858,56096.0,56095.0,0.00563]
[1725551113146,1.248858,56096.0,56095.0,0.01463]
[1725551113406,1.247858,56096.0,56095.0,0.00163]
[1725551113625,0.534796,56096.0,56095.0,0.00163]
[1725551113834,0.001,56096.0,56095.0,0.01663]
[1725551114054,0.179265,56096.0,56095.0,0.01663]
[1725551114273,0.892327,56096.0,56095.0,0.01663]
[1725551114484,1.248858,56096.0,56095.0,0.01663]
[1725551114688,2.107389,56096.0,56095.0,0.00663]
[1725551115150,2.107389,56096.0,56078.0,0.52650515]
[1725551115151,0.859531,56096.0,56078.0,0.52650515]
[1725551115392,0.31376226,56086.0,56080.0,0.178314]
[1725551115597,0.31376226,56086.0,56085.0,0.534901]
[1725551115823,0.31376226,56086.0,56085.0,0.1783]
[1725551116083,0.31376226,56086.0,56081.0,0.17551096]
[1725551116294,0.31376226,56086.0,56078.0,0.002]
[1725551116295,0.356608,56084.0,56078.0,0.002]
[1725551116518,0.356608,56084.0,56079.0,0.17551096]
[1725551116749,0.67035726,56086.0,56079.0,0.17551096]
[1725551116750,0.178307,56083.0,56079.0,0.35382896]
[1725551116960,0.178307,56083.0,56080.0,0.178316]
[1725551117204,0.49207526,56081.0,56080.0,0.17551096]
[1725551117627,0.178322,56079.0,56074.0,0.35667]
[1725551117836,0.61086226,56081.0,56075.0,0.53217496]
[1725551118042,0.96745726,56086.0,56079.0,0.356634]
[1725551118270,0.78915926,56086.0,56085.0,0.01]
[1725551118507,1.14675426,56086.0,56085.0,0.01]
[1725551118913,0.178305,56084.0,56080.0,0.17551096]
[1725551119121,0.178302,56085.0,56081.0,0.178312]
[1725551119318,0.1783,56085.0,56080.0,0.17551096]
[1725551119528,0.001,56086.0,56080.0,0.17551096]
[1725551119765,0.49206626,56084.0,56080.0,0.35382696]
[1725551119971,0.49206626,56084.0,56081.0,0.178313]
[1725551122332,0.001816,56086.0,56085.0,2.38171496]
[1725551122559,0.001816,56086.0,56085.0,2.41171496]
[1725551122773,0.000816,56086.0,56085.0,2.43471496]
[1725551123210,0.000816,56086.0,56085.0,2.79131596]
[1725551123350,0.001816,56086.0,56085.0,2.80131596]
[1725551123605,0.001816,56086.0,56085.0,2.44471496]
[1725551124482,0.001816,56086.0,56085.0,2.80131596]
[1725551124684,0.000816,56086.0,56085.0,2.79131596]
[1725551125140,0.000816,56086.0,56085.0,2.80531596]
[1725551125353,0.000816,56086.0,56085.0,2.44871496]
[1725551125578,0.000816,56086.0,56085.0,2.43471496]
[1725551125810,1e-06,56086.0,56085.0,3.15507822]
[1725551126015,1e-06,56086.0,56085.0,2.85531596]
[1725551126711,0.31376226,56116.0,56112.0,0.178213]
[1725551126924,0.52650515,56113.0,56110.0,0.356438]
[1725551127138,0.31376226,56116.0,56111.0,0.17551096]
[1725551127352,0.31376226,56116.0,56115.0,0.534615]
[1725551127600,0.31376226,56116.0,56114.0,0.178206]
[1725551127812,0.09527249,56116.0,56114.0,0.35371696]
[1725551128033,0.09527249,56116.0,56114.0,0.17551096]
[1725551128241,0.27347549,56116.0,56114.0,0.17551096]
[1725551128461,0.09527249,56116.0,56114.0,0.17551096]
[1725551128688,0.2947,56117.0,56114.0,0.53192796]
[1725551128913,0.2947,56117.0,56116.0,0.178202]
[1725551129367,0.2947,56117.0,56114.0,0.17551096]
[1725551129611,0.178203,56116.0,56114.0,0.17551096]
[1725551129836,0.2947,56117.0,56114.0,0.17751096]
[1725551130084,0.2947,56117.0,56115.0,0.178205]
[1725551130339,0.2947,56117.0,56114.0,0.17751096]
[1725551130340,0.2947,56117.0,56114.0,0.002]
[1725551130546,1.247435,56115.0,56114.0,0.002]
[1725551130998,1.247435,56115.0,56101.0,0.356496]
[1725551130999,1.06923,56115.0,56101.0,0.356496]
[1725551131256,0.178231,56107.0,56102.0,0.17551096]
[1725551131467,0.178231,56107.0,56104.0,0.178239]
[1725551131685,0.178233,56107.0,56105.0,0.17551096]
[1725551132138,0.178228,56108.0,56105.0,0.17551096]
[1725551132614,0.356451,56109.0,56105.0,0.17551096]
[1725551132796,0.178228,56108.0,56105.0,0.17551096]
[1725551133254,0.178228,56108.0,56105.0,0.36574696]
[1725551133479,0.178222,56110.0,56105.0,0.54398296]
[1725551133722,0.60846226,56117.0,56105.0,0.18751096]
[1725551133951,0.60846226,56117.0,56108.0,0.356451]
[1725551133952,0.178208,56114.0,56108.0,0.356451]
[1725551134159,0.27128052,56114.0,56109.0,0.17551096]
[1725551134374,0.27128052,56114.0,56110.0,0.35644]
[1725551134582,0.27128052,56114.0,56112.0,0.178214]
[1725551134819,0.295516,56117.0,56113.0,0.17551096]
[1725551135041,0.178202,56116.0,56113.0,0.35372096]
[1725551135279,0.295516,56117.0,56114.0,0.356416]
[1725551135524,0.000816,56117.0,56116.0,0.534606]
[1725551135744,0.000816,56117.0,56116.0,0.35371296]
[1725551135956,0.178206,56115.0,56110.0,0.35644]
[1725551136163,0.178202,56116.0,56113.0,0.178209]
[1725551136378,0.27209652,56117.0,56116.0,0.178202]
[1725551136593,0.27209652,56117.0,56114.0,0.53192496]
[1725551136820,0.000816,56117.0,56116.0,0.71011696]
[1725551137698,0.000816,56117.0,56116.0,0.35371296]
[1725551137905,0.27209652,56117.0,56113.0,0.17821]
[1725551138116,0.45029552,56117.0,56114.0,0.178207]
[1725551138359,0.828515,56115.0,56114.0,0.001]
[1725551138570,1.376225,56115.0,56114.0,0.001]
[1725551138782,0.178225,56109.0,56106.0,0.178233]
[1725551139069,0.178219,56111.0,56108.0,0.178226]
[1725551139284,0.62771452,56112.0,56108.0,0.17551096]
[1725551139499,0.27128052,56112.0,56109.0,0.178223]
[1725551139686,0.27128052,56112.0,56108.0,0.17551096]
[1725551139927,0.178218,56111.0,56108.0,0.35373696]
[1725551140169,0.841616,56115.0,56111.0,0.356436]
[1725551140170,0.2939,56115.0,56111.0,0.356436]
[1725551140379,0.000816,56117.0,56115.0,0.178205]
[1725551140816,0.000816,56117.0,56116.0,0.71011696]
[1725551141033,0.000816,56117.0,56116.0,1.06652096]
[1725551141249,0.000816,56117.0,56116.0,1.42292496]
[1725551141702,0.000816,56117.0,56116.0,1.77932896]
[1725551142388,0.000816,56117.0,56116.0,1.88132896]
[1725551143054,0.000816,56117.0,56116.0,1.89532896]
[1725551143276,0.000816,56117.0,56116.0,1.90532896]
[1725551143942,0.000816,56117.0,56116.0,2.41132896]
[1725551144402,0.000816,56117.0,56116.0,2.4644262]
[1725551144619,0.000816,56117.0,56116.0,2.41132896]
[1725551145345,0.000815,56129.0,56128.0,0.180164]
[1725551145550,0.000815,56129.0,56128.0,1.25953096]
[1725551145759,0.000815,56129.0,56128.0,1.71585896]
[1725551146921,0.000815,56129.0,56128.0,2.08418696]
[1725551147366,0.000815,56129.0,56128.0,1.71585896]
[1725551147797,0.000815,56129.0,56128.0,0.81000296]
[1725551148277,0.356328,56128.0,56117.0,0.40952356]
[1725551148507,0.189915,56129.0,56122.0,0.356361]
[1725551148508,0.27128052,56126.0,56122.0,0.356361]
[1725551148733,0.27128052,56126.0,56123.0,0.35368896]
[1725551148939,0.27128052,56126.0,56125.0,0.178173]
[1725551149200,0.27128052,56126.0,56125.0,0.17551096]
[1725551149421,0.27128052,56126.0,56125.0,0.35368396]
[1725551149639,0.189915,56129.0,56125.0,0.35368396]
[1725551149640,0.27128052,56128.0,56126.0,0.17817]
[1725551149851,0.27128052,56128.0,56126.0,0.35368096]
[1725551150058,0.27128052,56128.0,56126.0,0.17551096]
[1725551150267,0.27128052,56128.0,56115.0,0.001632]
[1725551150488,0.27128052,56128.0,56118.0,0.178194]
[1725551150489,0.178184,56122.0,56118.0,0.178194]